[Event "*** Titled Tuesday Blitz"]
[Site "Chess.com"]
[Date "2020.04.21"]
[Round "5"]
[White "AlexandraBotez"]
[Black "korkmaz16"]
[Result "1-0"]
[WhiteElo "2112"]
[BlackElo "2290"]
[TimeControl "180+1"]
[EndTime "10:57:19 PDT"]
[Termination "AlexandraBotez won by resignation"]

1. d4 {[%clk 0:03:00.9]} 1... Nf6 {[%clk 0:02:55.8]} 2. c4 {[%clk 0:02:55.9]}
2... e5 {[%clk 0:02:55]} 3. dxe5 {[%clk 0:02:52.2]} 3... Ng4 {[%clk 0:02:54.1]}
4. Nc3 {[%clk 0:02:42.5]} 4... Bc5 {[%clk 0:02:48.1]} 5. e3 {[%clk 0:02:40.8]}
5... Nxe5 {[%clk 0:02:46.5]} 6. f4 {[%clk 0:02:37.1]} 6... Nec6 {[%clk 0:02:41]}
7. Qh5 {[%clk 0:02:25]} 7... Bb4 {[%clk 0:02:38]} 8. Bd2 {[%clk 0:02:16]} 8...
d6 {[%clk 0:02:27.9]} 9. Nf3 {[%clk 0:02:14.9]} 9... Na6 {[%clk 0:02:22]} 10.
Bd3 {[%clk 0:02:11.4]} 10... Nc5 {[%clk 0:02:16.2]} 11. Bc2 {[%clk 0:02:10.6]}
11... Be6 {[%clk 0:02:08.5]} 12. b3 {[%clk 0:01:57.1]} 12... Qf6 {[%clk
0:02:01.4]} 13. Nd4 {[%clk 0:01:16.5]} 13... Nxd4 {[%clk 0:01:55.8]} 14. exd4
{[%clk 0:01:16.5]} 14... Qxd4 {[%clk 0:01:53.8]} 15. Qf3 {[%clk 0:01:16.4]}
15... O-O-O {[%clk 0:01:40.4]} 16. O-O-O {[%clk 0:01:16]} 16... Rhe8 {[%clk
0:01:14.8]} 17. Kb1 {[%clk 0:01:03.1]} 17... Bd7 {[%clk 0:01:09.8]} 18. Nb5
{[%clk 0:00:57.2]} 18... Bxb5 {[%clk 0:00:46.2]} 19. Bxb4 {[%clk 0:00:56.9]}
19... Qe3 {[%clk 0:00:25.7]} 20. Qxe3 {[%clk 0:00:56.6]} 20... Rxe3 {[%clk
0:00:26.6]} 21. cxb5 {[%clk 0:00:57]} 21... Ne4 {[%clk 0:00:26.3]} 22. Bxe4
{[%clk 0:00:55.4]} 22... Rxe4 {[%clk 0:00:26.2]} 23. Bc3 {[%clk 0:00:54.4]}
23... f6 {[%clk 0:00:25.9]} 24. g3 {[%clk 0:00:53.3]} 24... Rde8 {[%clk
0:00:26.2]} 25. Rd2 {[%clk 0:00:53.4]} 25... b6 {[%clk 0:00:26.5]} 26. a4 {[%clk
0:00:53]} 26... Kb7 {[%clk 0:00:27.1]} 27. Kc2 {[%clk 0:00:52.9]} 27... a6
{[%clk 0:00:27.7]} 28. bxa6+ {[%clk 0:00:52.8]} 28... Kxa6 {[%clk 0:00:28]} 29.
Rhd1 {[%clk 0:00:51.8]} 29... Kb7 {[%clk 0:00:27.8]} 30. a5 {[%clk 0:00:50.1]}
30... bxa5 {[%clk 0:00:27.6]} 31. Bxa5 {[%clk 0:00:50.3]} 31... Ra8 {[%clk
0:00:26.8]} 32. b4 {[%clk 0:00:50.7]} 32... Re3 {[%clk 0:00:24.1]} 33. Rd3
{[%clk 0:00:50.4]} 33... Re2+ {[%clk 0:00:23.7]} 34. R1d2 {[%clk 0:00:50.9]}
34... Re1 {[%clk 0:00:22.6]} 35. Rc3 {[%clk 0:00:44.3]} 35... Rc8 {[%clk
0:00:22.1]} 36. Kb2 {[%clk 0:00:42.7]} 36... Re4 {[%clk 0:00:21.4]} 37. Rdc2
{[%clk 0:00:42.3]} 37... c6 {[%clk 0:00:20.5]} 38. Kb3 {[%clk 0:00:41.7]} 38...
d5 {[%clk 0:00:20.8]} 39. h4 {[%clk 0:00:35.1]} 39... Ree8 {[%clk 0:00:19.3]}
40. Rc5 {[%clk 0:00:35.1]} 40... Rf8 {[%clk 0:00:17.2]} 41. b5 {[%clk
0:00:33.8]} 41... cxb5 {[%clk 0:00:17.2]} 42. Rxc8 {[%clk 0:00:33.9]} 42... Rxc8
{[%clk 0:00:18.1]} 43. Rxc8 {[%clk 0:00:33]} 43... Kxc8 {[%clk 0:00:19]} 44. Kb4
{[%clk 0:00:33.3]} 44... Kd7 {[%clk 0:00:19.8]} 45. Kxb5 {[%clk 0:00:33.5]}
45... h5 {[%clk 0:00:20.7]} 46. Kc5 {[%clk 0:00:33.5]} 46... Ke6 {[%clk
0:00:21.6]} 47. Be1 {[%clk 0:00:33.1]} 47... Kf5 {[%clk 0:00:22.5]} 48. Kxd5
{[%clk 0:00:33]} 48... g5 {[%clk 0:00:23.1]} 49. hxg5 {[%clk 0:00:30.3]} 49...
fxg5 {[%clk 0:00:24]} 50. fxg5 {[%clk 0:00:27.7]} 50... Kxg5 {[%clk 0:00:24.4]}
51. Ke5 {[%clk 0:00:26.5]} 51... Kg4 {[%clk 0:00:24.4]} 52. Kf6 {[%clk
0:00:26.5]} 52... h4 {[%clk 0:00:23.2]} 53. gxh4 {[%clk 0:00:26.1]} 53... Kh5
{[%clk 0:00:24.1]} 54. Kf5 {[%clk 0:00:25.6]} 54... Kh6 {[%clk 0:00:24.4]} 55.
Kg4 {[%clk 0:00:25.6]} 55... Kg6 {[%clk 0:00:25]} 56. h5+ {[%clk 0:00:25.5]}
56... Kh6 {[%clk 0:00:25.5]} 57. Bd2+ {[%clk 0:00:25.8]} 57... Kh7 {[%clk
0:00:26.1]} 58. Kg5 {[%clk 0:00:26.3]} 58... Kg7 {[%clk 0:00:26.6]} 59. h6+
{[%clk 0:00:26.3]} 59... Kh7 {[%clk 0:00:27.4]} 60. Kh5 {[%clk 0:00:26.9]} 60...
Kg8 {[%clk 0:00:28.3]} 61. Kg6 {[%clk 0:00:26.6]} 61... Kh8 {[%clk 0:00:28.6]}
62. Bc3+ {[%clk 0:00:27]} 62... Kg8 {[%clk 0:00:29.5]} 63. h7+ {[%clk
0:00:27.6]} 63... Kf8 {[%clk 0:00:30.2]} 64. h8=Q+ {[%clk 0:00:27.9]} 64... Ke7
{[%clk 0:00:31.1]} 65. Qf6+ {[%clk 0:00:28.4]} 1-0

[Event "*** Titled Tuesday Blitz"]
[Site "Chess.com"]
[Date "2020.04.21"]
[Round "5"]
[White "DishonorOnYourCow"]
[Black "ShieldingOff"]
[Result "1-0"]
[WhiteElo "2300"]
[BlackElo "2004"]
[TimeControl "180+1"]
[EndTime "10:57:19 PDT"]
[Termination "DishonorOnYourCow won on time"]

1. d4 {[%clk 0:03:00.9]} 1... c5 {[%clk 0:02:59.1]} 2. d5 {[%clk 0:02:49.5]}
2... e5 {[%clk 0:02:59]} 3. e4 {[%clk 0:02:48.3]} 3... d6 {[%clk 0:02:59]} 4.
Nc3 {[%clk 0:02:47]} 4... Be7 {[%clk 0:02:58.7]} 5. Bb5+ {[%clk 0:02:45.8]} 5...
Nd7 {[%clk 0:02:52.3]} 6. Nf3 {[%clk 0:02:43.9]} 6... a6 {[%clk 0:02:52.1]} 7.
Be2 {[%clk 0:02:43.5]} 7... Ngf6 {[%clk 0:02:46.2]} 8. a4 {[%clk 0:02:40.5]}
8... O-O {[%clk 0:02:45.2]} 9. O-O {[%clk 0:02:38.5]} 9... Ne8 {[%clk
0:02:39.3]} 10. Nd2 {[%clk 0:02:34.8]} 10... Rb8 {[%clk 0:02:32]} 11. a5 {[%clk
0:02:27.2]} 11... Bg5 {[%clk 0:02:31.6]} 12. Nc4 {[%clk 0:02:15.7]} 12... Bxc1
{[%clk 0:02:29.7]} 13. Qxc1 {[%clk 0:02:16.6]} 13... b5 {[%clk 0:02:24.5]} 14.
axb6 {[%clk 0:02:14.6]} 14... Nxb6 {[%clk 0:02:22.7]} 15. Na5 {[%clk 0:02:07]}
15... Qh4 {[%clk 0:01:46.1]} 16. Nc6 {[%clk 0:01:58.9]} 16... Ra8 {[%clk
0:01:45.4]} 17. Qe3 {[%clk 0:01:38.9]} 17... Bb7 {[%clk 0:01:11.9]} 18. b4
{[%clk 0:01:26.5]} 18... Nd7 {[%clk 0:01:12.1]} 19. bxc5 {[%clk 0:01:24.1]}
19... Nxc5 {[%clk 0:01:11.2]} 20. Rfb1 {[%clk 0:01:18.8]} 20... Nc7 {[%clk
0:01:05.8]} 21. Na4 {[%clk 0:01:10.5]} 21... Bxc6 {[%clk 0:01:05.1]} 22. Nxc5
{[%clk 0:01:04.6]} 22... Bb5 {[%clk 0:01:04.7]} 23. Nb3 {[%clk 0:00:51]} 23...
Rfb8 {[%clk 0:00:58.7]} 24. c4 {[%clk 0:00:37.9]} 24... Bd7 {[%clk 0:00:55.3]}
25. c5 {[%clk 0:00:33.9]} 25... Rb4 {[%clk 0:00:38.3]} 26. cxd6 {[%clk
0:00:24.1]} 26... Rxe4 {[%clk 0:00:38]} 27. Qf3 {[%clk 0:00:17.1]} 27... Nxd5
{[%clk 0:00:34.1]} 28. Nc5 {[%clk 0:00:16.9]} 28... Bc6 {[%clk 0:00:31.5]} 29.
Nxe4 {[%clk 0:00:16.6]} 29... a5 {[%clk 0:00:20.9]} 30. Rc1 {[%clk 0:00:15.8]}
30... Nc3 {[%clk 0:00:18]} 31. Rxc3 {[%clk 0:00:15.1]} 31... Bxe4 {[%clk
0:00:17.7]} 32. Qe3 {[%clk 0:00:14.2]} 32... Bd5 {[%clk 0:00:15]} 33. Bf3 {[%clk
0:00:14.3]} 33... e4 {[%clk 0:00:14.4]} 34. Be2 {[%clk 0:00:13.1]} 34... h6
{[%clk 0:00:15]} 35. Rd1 {[%clk 0:00:12.5]} 35... Be6 {[%clk 0:00:10.6]} 36. d7
{[%clk 0:00:12.4]} 36... Rd8 {[%clk 0:00:10.3]} 37. Qb6 {[%clk 0:00:11.4]} 37...
a4 {[%clk 0:00:08.6]} 38. Qc7 {[%clk 0:00:08.3]} 38... Kh7 {[%clk 0:00:07.6]}
39. Ra3 {[%clk 0:00:07.4]} 39... Qg5 {[%clk 0:00:06.6]} 40. Rxa4 {[%clk
0:00:06.7]} 40... e3 {[%clk 0:00:05.5]} 41. Qg3 {[%clk 0:00:04.5]} 41... Qf5
{[%clk 0:00:01.7]} 42. Bd3 {[%clk 0:00:04.1]} 1-0

[Event "*** Titled Tuesday Blitz"]
[Site "Chess.com"]
[Date "2020.04.21"]
[Round "5"]
[White "JulAnt"]
[Black "Savagelittlemole"]
[Result "0-1"]
[WhiteElo "2502"]
[BlackElo "2675"]
[TimeControl "180+1"]
[EndTime "10:57:20 PDT"]
[Termination "Savagelittlemole won on time"]

1. e4 {[%clk 0:03:00.9]} 1... c5 {[%clk 0:02:49.8]} 2. Nf3 {[%clk 0:03:00.8]}
2... d6 {[%clk 0:02:48.9]} 3. d4 {[%clk 0:03:01.1]} 3... cxd4 {[%clk 0:02:47.3]}
4. Nxd4 {[%clk 0:03:02]} 4... Nf6 {[%clk 0:02:46.6]} 5. Nc3 {[%clk 0:03:02.2]}
5... a6 {[%clk 0:02:47]} 6. Bg5 {[%clk 0:03:02.3]} 6... Nbd7 {[%clk 0:02:45.9]}
7. Bc4 {[%clk 0:03:00.6]} 7... h6 {[%clk 0:02:27.4]} 8. Bh4 {[%clk 0:02:54.9]}
8... g6 {[%clk 0:02:20.4]} 9. Qe2 {[%clk 0:02:48.4]} 9... Bg7 {[%clk 0:02:18.1]}
10. O-O-O {[%clk 0:02:48.4]} 10... Qc7 {[%clk 0:02:08.6]} 11. Kb1 {[%clk
0:02:30.8]} 11... O-O {[%clk 0:02:04.4]} 12. Bb3 {[%clk 0:02:29.5]} 12... e5
{[%clk 0:01:55.2]} 13. Nf3 {[%clk 0:02:22.6]} 13... Nc5 {[%clk 0:01:52.3]} 14.
Bxf6 {[%clk 0:02:06.1]} 14... Bxf6 {[%clk 0:01:51]} 15. Nd5 {[%clk 0:02:06.3]}
15... Qd8 {[%clk 0:01:48]} 16. Nxf6+ {[%clk 0:02:06.3]} 16... Qxf6 {[%clk
0:01:46.2]} 17. Qe3 {[%clk 0:01:56.4]} 17... Kg7 {[%clk 0:01:38.6]} 18. Rd2
{[%clk 0:01:53.1]} 18... a5 {[%clk 0:01:33.6]} 19. Rhd1 {[%clk 0:01:50.7]} 19...
Rd8 {[%clk 0:01:26.4]} 20. Bd5 {[%clk 0:01:46.5]} 20... Be6 {[%clk 0:01:18.5]}
21. Ne1 {[%clk 0:01:42.1]} 21... Bxd5 {[%clk 0:01:15.1]} 22. Rxd5 {[%clk
0:01:43]} 22... b5 {[%clk 0:01:10.8]} 23. f3 {[%clk 0:01:38.3]} 23... b4 {[%clk
0:01:08.5]} 24. Nd3 {[%clk 0:01:24.4]} 24... Ne6 {[%clk 0:00:58.1]} 25. Nf2
{[%clk 0:01:09.6]} 25... Nf4 {[%clk 0:00:55.4]} 26. R5d2 {[%clk 0:01:08.4]}
26... Nxg2 {[%clk 0:00:52.9]} 27. Qe2 {[%clk 0:00:36.7]} 27... Nf4 {[%clk
0:00:51]} 28. Qf1 {[%clk 0:00:33.4]} 28... a4 {[%clk 0:00:48.2]} 29. Ng4 {[%clk
0:00:30.7]} 29... Qe6 {[%clk 0:00:45.1]} 30. Ne3 {[%clk 0:00:27.2]} 30... b3
{[%clk 0:00:42.8]} 31. cxb3 {[%clk 0:00:27.3]} 31... axb3 {[%clk 0:00:41]} 32.
a3 {[%clk 0:00:26.7]} 32... Rac8 {[%clk 0:00:37.9]} 33. Nd5 {[%clk 0:00:25]}
33... Nxd5 {[%clk 0:00:37.6]} 34. Rxd5 {[%clk 0:00:25.9]} 34... Rc2 {[%clk
0:00:34.6]} 35. Qd3 {[%clk 0:00:24.5]} 35... Rxh2 {[%clk 0:00:30.2]} 36. Qxb3
{[%clk 0:00:21.7]} 36... Qf6 {[%clk 0:00:27.8]} 37. Qb6 {[%clk 0:00:19.1]} 37...
h5 {[%clk 0:00:21.7]} 38. a4 {[%clk 0:00:18.9]} 38... Rc8 {[%clk 0:00:18.4]} 39.
Rxd6 {[%clk 0:00:14.9]} 39... Qxf3 {[%clk 0:00:16.5]} 40. Qb7 {[%clk 0:00:13.8]}
40... Rcc2 {[%clk 0:00:14.1]} 41. a5 {[%clk 0:00:09.9]} 41... Qe2 {[%clk
0:00:11.9]} 0-1

[Event "*** Titled Tuesday Blitz"]
[Site "Chess.com"]
[Date "2020.04.21"]
[Round "5"]
[White "albi1999"]
[Black "RubensCezila"]
[Result "1-0"]
[WhiteElo "2599"]
[BlackElo "2427"]
[TimeControl "180+1"]
[EndTime "10:57:20 PDT"]
[Termination "albi1999 won on time"]

1. d4 {[%clk 0:03:00.9]} 1... Nf6 {[%clk 0:02:59.5]} 2. c4 {[%clk 0:02:58.4]}
2... g6 {[%clk 0:02:54.9]} 3. g3 {[%clk 0:02:55.7]} 3... Bg7 {[%clk 0:02:54]} 4.
Bg2 {[%clk 0:02:55.5]} 4... O-O {[%clk 0:02:54]} 5. Nc3 {[%clk 0:02:56]} 5... d6
{[%clk 0:02:53.5]} 6. Nf3 {[%clk 0:02:56.4]} 6... Nbd7 {[%clk 0:02:53.5]} 7. O-O
{[%clk 0:02:56.3]} 7... e5 {[%clk 0:02:53.4]} 8. e4 {[%clk 0:02:55.5]} 8... c6
{[%clk 0:02:53.3]} 9. h3 {[%clk 0:02:48.9]} 9... Qb6 {[%clk 0:02:50.7]} 10. Re1
{[%clk 0:02:48]} 10... exd4 {[%clk 0:02:40.8]} 11. Nxd4 {[%clk 0:02:48.9]} 11...
Re8 {[%clk 0:02:39.2]} 12. Nc2 {[%clk 0:02:45.8]} 12... Nc5 {[%clk 0:02:30.8]}
13. Be3 {[%clk 0:02:45.6]} 13... Qc7 {[%clk 0:02:17.1]} 14. Bf4 {[%clk
0:02:41.3]} 14... Bf8 {[%clk 0:02:10]} 15. Qd2 {[%clk 0:02:28.6]} 15... Nh5
{[%clk 0:02:08.6]} 16. Be3 {[%clk 0:02:26.8]} 16... Nd7 {[%clk 0:02:03.7]} 17.
Rad1 {[%clk 0:02:25.8]} 17... Ne5 {[%clk 0:01:57.1]} 18. Qe2 {[%clk 0:02:21.7]}
18... Nf6 {[%clk 0:01:44.2]} 19. f4 {[%clk 0:02:16.8]} 19... Ned7 {[%clk
0:01:42.7]} 20. Qf2 {[%clk 0:02:06.7]} 20... Bg7 {[%clk 0:01:33.9]} 21. Qd2
{[%clk 0:02:03.7]} 21... Bf8 {[%clk 0:01:24.4]} 22. b3 {[%clk 0:01:59.8]} 22...
a5 {[%clk 0:01:24.3]} 23. Nd4 {[%clk 0:01:58.8]} 23... Nc5 {[%clk 0:01:22]} 24.
Qc2 {[%clk 0:01:56.6]} 24... Bg7 {[%clk 0:01:20.8]} 25. Ndb5 {[%clk 0:01:54.1]}
25... cxb5 {[%clk 0:01:16]} 26. Nxb5 {[%clk 0:01:55]} 26... Qe7 {[%clk 0:00:39]}
27. Nxd6 {[%clk 0:01:48.2]} 27... Nfd7 {[%clk 0:00:38.9]} 28. Nxe8 {[%clk
0:01:44.5]} 28... Qxe8 {[%clk 0:00:39]} 29. e5 {[%clk 0:01:43.9]} 29... Ne6
{[%clk 0:00:34.7]} 30. Rd2 {[%clk 0:01:29.1]} 30... Ndc5 {[%clk 0:00:33.9]} 31.
Red1 {[%clk 0:01:22.2]} 31... Bf8 {[%clk 0:00:29.5]} 32. g4 {[%clk 0:01:12.7]}
32... Na6 {[%clk 0:00:22.6]} 33. f5 {[%clk 0:01:10.2]} 33... Nec5 {[%clk
0:00:22.5]} 34. Bd4 {[%clk 0:01:03.2]} 34... Bd7 {[%clk 0:00:15.1]} 35. Ba1
{[%clk 0:00:56.1]} 35... Bc6 {[%clk 0:00:14.7]} 36. e6 {[%clk 0:00:56.1]} 36...
Bg7 {[%clk 0:00:08]} 37. Bxg7 {[%clk 0:00:40.9]} 37... Kxg7 {[%clk 0:00:08.9]}
38. f6+ {[%clk 0:00:38.6]} 38... Kg8 {[%clk 0:00:07.9]} 39. e7 {[%clk
0:00:38.2]} 39... Ne6 {[%clk 0:00:06.8]} 40. Bxc6 {[%clk 0:00:28]} 40... bxc6
{[%clk 0:00:04]} 41. Qe4 {[%clk 0:00:25.7]} 41... Rc8 {[%clk 0:00:02.3]} 42. Qe3
{[%clk 0:00:25.4]} 1-0

[Event "*** Titled Tuesday Blitz"]
[Site "Chess.com"]
[Date "2020.04.21"]
[Round "5"]
[White "7Madman"]
[Black "Zurability"]
[Result "0-1"]
[WhiteElo "2591"]
[BlackElo "2735"]
[TimeControl "180+1"]
[EndTime "10:57:21 PDT"]
[Termination "Zurability won by resignation"]

1. e4 {[%clk 0:02:59.6]} 1... c5 {[%clk 0:02:58.5]} 2. Nc3 {[%clk 0:02:57.9]}
2... d6 {[%clk 0:02:57.4]} 3. g3 {[%clk 0:02:58.8]} 3... g6 {[%clk 0:02:57.4]}
4. Bg2 {[%clk 0:02:59.1]} 4... Bg7 {[%clk 0:02:58.1]} 5. d3 {[%clk 0:03:00]}
5... Nc6 {[%clk 0:02:58.8]} 6. f4 {[%clk 0:03:00.9]} 6... e6 {[%clk 0:02:57.1]}
7. Nf3 {[%clk 0:03:01.8]} 7... Nge7 {[%clk 0:02:57.7]} 8. O-O {[%clk 0:03:02]}
8... O-O {[%clk 0:02:58.3]} 9. Be3 {[%clk 0:03:02.6]} 9... Nd4 {[%clk 0:02:56]}
10. e5 {[%clk 0:03:01.5]} 10... Nec6 {[%clk 0:02:48.4]} 11. exd6 {[%clk
0:03:00.6]} 11... Qxd6 {[%clk 0:02:47.5]} 12. Ne4 {[%clk 0:03:01.3]} 12... Qe7
{[%clk 0:02:45.1]} 13. c3 {[%clk 0:03:01.8]} 13... f5 {[%clk 0:02:15.4]} 14.
Nxc5 {[%clk 0:02:45.2]} 14... Qxc5 {[%clk 0:02:14.2]} 15. cxd4 {[%clk
0:02:45.3]} 15... Nxd4 {[%clk 0:02:07.8]} 16. Rc1 {[%clk 0:02:36.9]} 16... Qd6
{[%clk 0:02:03.9]} 17. Ne5 {[%clk 0:02:28.1]} 17... Bxe5 {[%clk 0:01:54]} 18.
fxe5 {[%clk 0:02:28.4]} 18... Qxe5 {[%clk 0:01:54.6]} 19. Re1 {[%clk 0:02:19.5]}
19... Qd6 {[%clk 0:01:37.8]} 20. Bf4 {[%clk 0:02:11.5]} 20... Qb6 {[%clk
0:01:37.8]} 21. Kh1 {[%clk 0:02:03.8]} 21... Bd7 {[%clk 0:01:25.1]} 22. Qd2
{[%clk 0:01:17.1]} 22... Rac8 {[%clk 0:01:19.7]} 23. Qf2 {[%clk 0:01:11.8]}
23... Bc6 {[%clk 0:01:05.4]} 24. Be3 {[%clk 0:00:58.7]} 24... Bxg2+ {[%clk
0:01:02.8]} 25. Qxg2 {[%clk 0:00:58.9]} 25... Rfd8 {[%clk 0:00:44.5]} 26. Bg5
{[%clk 0:00:54]} 26... Re8 {[%clk 0:00:36.6]} 27. Rc4 {[%clk 0:00:40.5]} 27...
Rxc4 {[%clk 0:00:32.8]} 28. dxc4 {[%clk 0:00:41.4]} 28... e5 {[%clk 0:00:30.6]}
29. Qd5+ {[%clk 0:00:39.8]} 29... Qe6 {[%clk 0:00:30.4]} 30. Qxb7 {[%clk
0:00:37.2]} 30... e4 {[%clk 0:00:26.4]} 31. Bh6 {[%clk 0:00:31.3]} 31... Qf7
{[%clk 0:00:20.8]} 32. Qb4 {[%clk 0:00:17.6]} 32... Nf3 {[%clk 0:00:20.3]} 33.
Re2 {[%clk 0:00:16.3]} 33... Rd8 {[%clk 0:00:15.2]} 34. Kg2 {[%clk 0:00:16]}
34... g5 {[%clk 0:00:14.4]} 35. Qa5 {[%clk 0:00:12]} 35... Rd6 {[%clk
0:00:09.7]} 36. h4 {[%clk 0:00:03.5]} 36... Rxh6 {[%clk 0:00:09.3]} 37. hxg5
{[%clk 0:00:04.2]} 37... Rh2+ {[%clk 0:00:09.2]} 38. Kf1 {[%clk 0:00:04.2]}
38... Rh1+ {[%clk 0:00:09.4]} 39. Kf2 {[%clk 0:00:04.1]} 39... Rh2+ {[%clk
0:00:09]} 40. Kf1 {[%clk 0:00:04.4]} 40... Rxe2 {[%clk 0:00:08.4]} 41. Kxe2
{[%clk 0:00:05.3]} 41... Qd7 {[%clk 0:00:08.8]} 42. Qb4 {[%clk 0:00:03.3]} 42...
Nxg5 {[%clk 0:00:07]} 43. c5 {[%clk 0:00:03.6]} 43... Ne6 {[%clk 0:00:07]} 44.
Qc4 {[%clk 0:00:03.8]} 44... Kg7 {[%clk 0:00:06.7]} 45. c6 {[%clk 0:00:04.4]}
45... Qxc6 {[%clk 0:00:06.2]} 46. Qxc6 {[%clk 0:00:03.4]} 46... Nd4+ {[%clk
0:00:06.6]} 47. Ke3 {[%clk 0:00:04.3]} 47... Nxc6 {[%clk 0:00:07.2]} 0-1

[Event "*** Titled Tuesday Blitz"]
[Site "Chess.com"]
[Date "2020.04.21"]
[Round "5"]
[White "CroissantNeuf"]
[Black "Anaj14"]
[Result "0-1"]
[WhiteElo "2367"]
[BlackElo "2351"]
[TimeControl "180+1"]
[EndTime "10:57:21 PDT"]
[Termination "Anaj14 won by checkmate"]

1. Nf3 {[%clk 0:03:00.9]} 1... d5 {[%clk 0:02:58]} 2. g3 {[%clk 0:03:00.7]} 2...
Bg4 {[%clk 0:02:55.1]} 3. Bg2 {[%clk 0:03:00.7]} 3... Nd7 {[%clk 0:02:55.1]} 4.
h3 {[%clk 0:02:58.4]} 4... Bh5 {[%clk 0:02:54.6]} 5. c4 {[%clk 0:02:54.6]} 5...
dxc4 {[%clk 0:02:52.1]} 6. Na3 {[%clk 0:02:53.2]} 6... e6 {[%clk 0:02:50.6]} 7.
Nxc4 {[%clk 0:02:52.5]} 7... c6 {[%clk 0:02:50.7]} 8. O-O {[%clk 0:02:51.7]}
8... Ngf6 {[%clk 0:02:48.8]} 9. d3 {[%clk 0:02:50.5]} 9... Be7 {[%clk
0:02:41.2]} 10. Rb1 {[%clk 0:02:38.4]} 10... O-O {[%clk 0:02:40.1]} 11. b4
{[%clk 0:02:37.4]} 11... a6 {[%clk 0:02:36.7]} 12. Na5 {[%clk 0:02:33.3]} 12...
Qc8 {[%clk 0:02:32.5]} 13. Bd2 {[%clk 0:02:28.6]} 13... h6 {[%clk 0:02:24.4]}
14. Qb3 {[%clk 0:02:14.7]} 14... Re8 {[%clk 0:01:54.7]} 15. Rfc1 {[%clk
0:02:13.6]} 15... Nd5 {[%clk 0:01:49.2]} 16. a4 {[%clk 0:02:08.8]} 16... Bf6
{[%clk 0:01:35.8]} 17. b5 {[%clk 0:01:57.9]} 17... axb5 {[%clk 0:01:35.1]} 18.
axb5 {[%clk 0:01:57.4]} 18... c5 {[%clk 0:01:28.9]} 19. e4 {[%clk 0:01:14.2]}
19... N5b6 {[%clk 0:01:14.9]} 20. g4 {[%clk 0:00:24]} 20... Bg6 {[%clk
0:01:11.6]} 21. Nc4 {[%clk 0:00:18.9]} 21... Nxc4 {[%clk 0:01:04.8]} 22. Qxc4
{[%clk 0:00:19]} 22... Qb8 {[%clk 0:01:02.5]} 23. Be3 {[%clk 0:00:17.2]} 23...
b6 {[%clk 0:01:00.6]} 24. h4 {[%clk 0:00:15.8]} 24... Ne5 {[%clk 0:00:51.6]} 25.
Nxe5 {[%clk 0:00:15.2]} 25... Bxe5 {[%clk 0:00:49.5]} 26. d4 {[%clk 0:00:08.4]}
26... cxd4 {[%clk 0:00:44.3]} 27. Bxd4 {[%clk 0:00:09]} 27... Bf4 {[%clk
0:00:34]} 28. Rd1 {[%clk 0:00:09.2]} 28... Rc8 {[%clk 0:00:30.3]} 29. Qe2 {[%clk
0:00:06.7]} 29... e5 {[%clk 0:00:27.9]} 30. Be3 {[%clk 0:00:05.1]} 30... Bxe3
{[%clk 0:00:28.3]} 31. Qxe3 {[%clk 0:00:05.2]} 31... f6 {[%clk 0:00:24.9]} 32.
g5 {[%clk 0:00:05.1]} 32... hxg5 {[%clk 0:00:24.1]} 33. hxg5 {[%clk 0:00:06]}
33... Rd8 {[%clk 0:00:13.6]} 34. gxf6 {[%clk 0:00:05.4]} 34... gxf6 {[%clk
0:00:14]} 35. Qh6 {[%clk 0:00:05.4]} 35... Kf7 {[%clk 0:00:14.5]} 36. Bh3 {[%clk
0:00:05.3]} 36... Qc7 {[%clk 0:00:09.3]} 37. Bf5 {[%clk 0:00:04.2]} 37... Bxf5
{[%clk 0:00:09.1]} 38. exf5 {[%clk 0:00:05.1]} 38... Rg8+ {[%clk 0:00:08.6]} 39.
Kf1 {[%clk 0:00:04.6]} 39... Qc4+ {[%clk 0:00:08.1]} 40. Ke1 {[%clk 0:00:05.1]}
40... Qe4+ {[%clk 0:00:07]} 41. Kd2 {[%clk 0:00:04.9]} 41... Rgd8+ {[%clk
0:00:05.3]} 42. Kc3 {[%clk 0:00:05]} 42... Rac8+ {[%clk 0:00:05.7]} 43. Kb3
{[%clk 0:00:05.1]} 43... Qc4+ {[%clk 0:00:05.4]} 44. Kb2 {[%clk 0:00:04.7]}
44... Qc3+ {[%clk 0:00:05.8]} 45. Ka2 {[%clk 0:00:04.9]} 45... Ra8# {[%clk
0:00:06.4]} 0-1